bitfinex-derivatives/quotes_SOLF0:USTF0_20240923
["timestamp","ask_amount","ask_price","bid_price","bid_amount"]
[1727059968858,6.89816752,146.33,146.3,3.4174]
[1727059969753,6.89816752,146.33,146.31,3.4171]
[1727059969954,10.7766,146.34,146.31,3.4171]
[1727059970465,14.12053162,146.34,146.31,3.4171]
[1727059971262,6.76053162,146.34,146.31,3.4171]
[1727059971563,14.12053162,146.34,146.31,3.4171]
[1727059972065,3.4167,146.33,146.31,3.4171]
[1727059972265,10.70393162,146.34,146.31,3.4171]
[1727059972662,3.34393162,146.34,146.31,3.4171]
[1727059973860,6.76053162,146.34,146.31,3.4171]
[1727059975269,14.12053162,146.34,146.31,3.4171]
[1727059975467,3.4167,146.33,146.31,3.4171]
[1727059978569,1.3279,146.39,146.31,7.36]
[1727059978765,7.36,146.37,146.33,7.36]
[1727059979669,10.7759,146.37,146.34,3.4164]
[1727059980169,10.7761,146.36,146.33,3.4166]
[1727059981764,1.3279,146.39,146.33,7.36]
[1727059981964,1.4419,146.41,146.36,7.36]
[1727059982369,10.72945112,146.42,146.36,7.36]
[1727059982566,10.72945112,146.42,146.38,3.4155]
[1727059982567,3.415,146.41,146.38,3.4155]
[1727059982972,3.415,146.41,146.38,10.7755]
[1727059983178,1.428,146.43,146.39,7.36]
[1727059983371,3.50105968,146.44,146.4,7.36]
[1727059983775,6.91535968,146.44,146.4,10.7749]
[1727059984174,10.774,146.45,146.41,3.4147]
[1727059984369,3.414,146.45,146.39,11.48]
[1727059984571,6.908355,146.45,146.39,11.48]
[1727059984771,3.414,146.45,146.41,3.4146]
[1727059985380,6.87863471,146.45,146.41,3.4146]
[1727059985672,3.414,146.45,146.41,3.4146]
[1727059986067,6.77751738,146.45,146.41,3.4146]
[1727059988971,3.4142,146.44,146.41,3.4146]
[1727059989279,3.36351738,146.45,146.4,3.415]
[1727059989472,11.48,146.44,146.36,11.48]
[1727059989675,11.48,146.44,146.38,3.4154]
[1727059991174,3.4148,146.42,146.38,3.4154]
[1727059992384,3.4149,146.41,146.38,3.4154]
[1727059993897,11.48,146.44,146.36,11.48]
[1727059994088,3.35497096,146.45,146.38,11.48]
[1727059994295,2.6535,146.47,146.38,11.48]
[1727059994992,3.414,146.45,146.38,11.48]
[1727059995193,6.85963367,146.45,146.38,11.48]
[1727059995699,6.85963367,146.45,146.41,3.4147]
[1727059996494,3.4142,146.44,146.41,3.4147]
[1727059999598,11.48,146.55,146.43,11.48]
[1727059999797,2.7743,146.54,146.46,11.48]
[1727060000193,3.4124,146.52,146.48,3.4131]
[1727060000502,2.7743,146.54,146.46,11.48]
[1727060000697,2.7743,146.54,146.48,11.48]
[1727060000897,2.7743,146.54,146.51,3.4124]
[1727060003009,3.45439016,146.55,146.52,3.4122]
[1727060003203,3.4114,146.56,146.52,3.4122]
[1727060003498,3.41276896,146.55,146.52,3.4122]
[1727060003691,6.82436896,146.55,146.52,3.4122]
[1727060003895,3.4116,146.55,146.52,3.4122]
[1727060004302,3.4116,146.55,146.51,3.4124]
[1727060004502,6.89162068,146.55,146.51,3.4124]
[1727060007104,3.48002068,146.55,146.52,3.4123]
[1727060007606,11.48,146.58,146.52,3.4123]
[1727060008805,3.4115,146.56,146.52,3.4123]
[1727060009004,3.44042335,146.55,146.51,3.4125]
[1727060009200,11.48,146.58,146.48,11.48]
[1727060010011,3.4117,146.55,146.48,11.48]
[1727060010211,6.90821782,146.55,146.48,11.48]
[1727060010411,3.4117,146.55,146.48,11.48]
[1727060010613,3.4117,146.55,146.52,3.4123]
[1727060011015,6.85905764,146.55,146.52,3.4123]
[1727060013314,3.4121,146.53,146.43,58.03755211]
[1727060013518,3.44735764,146.55,146.45,11.48]
[1727060013722,3.44735764,146.55,146.47,11.48]
[1727060014219,3.4118,146.54,146.51,3.4123]
[1727060016322,10.7618,146.54,146.51,3.4123]
[1727060016627,10.7621,146.53,146.5,3.4127]
[1727060018525,3.4124,146.52,146.49,3.4129]
[1727060018728,10.7624,146.52,146.49,3.4129]
[1727060019219,3.4124,146.52,146.49,3.4129]
[1727060019525,10.7624,146.52,146.49,3.4129]
[1727060020726,3.4125,146.51,146.48,3.4131]
[1727060030719,7.35,146.49,146.45,3.4138]
[1727060030918,7.35,146.49,146.43,7.35]
[1727060031129,4.0702,146.53,146.43,7.35]
[1727060031325,7.35,146.49,146.44,7.35]
[1727060031623,7.46260592,146.53,146.44,7.35]
[1727060031828,3.4131,146.49,146.44,7.35]
[1727060032232,3.4131,146.49,146.46,3.4135]
[1727060034426,3.4128,146.5,146.47,3.4134]
[1727060034626,3.4128,146.5,146.46,7.35]
[1727060035031,3.4128,146.5,146.47,3.4133]
[1727060036430,3.4126,146.51,146.48,3.4132]
[1727060038334,7.35,146.51,146.46,7.35]
[1727060038740,3.413,146.49,146.46,10.7635]
[1727060042141,3.4129,146.5,146.47,3.4134]
[1727060042344,3.4129,146.5,146.47,7.35]
[1727060043937,3.4129,146.5,146.47,10.7633]
[1727060049644,3.4133,146.48,146.42,1.3163]
[1727060049843,7.35,146.49,146.44,7.35]
[1727060050637,10.7632,146.49,146.46,3.4136]
[1727060050944,3.4132,146.49,146.45,7.35]
[1727060051544,3.4132,146.49,146.46,3.4135]
[1727060052446,7.35,146.49,146.45,3.4138]
[1727060052648,7.35,146.49,146.44,7.35]
[1727060053250,7.35,146.49,146.42,1.3163]
[1727060053843,3.4136,146.47,146.44,10.764]
[1727060054150,7.35,146.48,146.44,7.35]
[1727060054548,3.4135,146.47,146.44,7.35]
[1727060054750,3.4135,146.47,146.44,10.7641]
[1727060055143,7.46260592,146.53,146.45,7.35]
[1727060055350,7.35,146.51,146.45,7.35]
[1727060055549,7.46260592,146.53,146.45,7.35]
[1727060055748,7.46260592,146.53,146.48,7.35]
[1727060055950,1.3273,146.53,146.49,7.35]
[1727060056354,4.7395,146.53,146.5,3.4127]
[1727060058149,3.4122,146.53,146.5,3.4127]
[1727060058855,6.84995491,146.54,146.51,3.4125]
[1727060059245,3.4119,146.54,146.51,3.4125]
[1727060066856,10.7619,146.54,146.51,3.4125]
[1727060067458,7.35,146.54,146.43,2.7347]
[1727060067663,3.39980876,146.55,146.47,7.35]
[1727060067664,7.35,146.53,146.47,7.35]
[1727060068162,3.4124,146.52,146.49,3.413]
[1727060068361,6.90222518,146.52,146.49,3.413]
[1727060070065,3.4125,146.51,146.48,3.4131]
[1727060070267,10.7625,146.51,146.48,3.4131]
[1727060070462,3.4125,146.51,146.48,3.4131]
[1727060071165,3.4128,146.5,146.47,3.4134]
[1727060071462,10.7628,146.5,146.47,3.4134]
[1727060071670,3.4127,146.51,146.48,3.4132]
[1727060072760,14.24519284,146.52,146.49,3.4129]
[1727060073665,3.4126,146.51,146.48,3.4132]
[1727060075965,1.334,146.57,146.49,7.35]
[1727060076172,1.334,146.57,146.53,7.35]
[1727060076367,97.93087063,146.65,146.55,7.35]
[1727060076672,7.35,146.61,146.56,7.35]
[1727060077172,3.4106,146.6,146.56,10.7612]
[1727060077471,7.35,146.61,146.56,10.7612]
[1727060077659,7.35,146.6,146.56,10.7612]
[1727060078671,18.86306323,146.64,146.54,7.35]
[1727060078672,7.35,146.59,146.54,7.35]
[1727060078970,7.35,146.59,146.53,7.35]
[1727060079369,3.4111,146.58,146.54,3.4117]
[1727060080460,3.4112,146.57,146.54,3.4117]
[1727060081473,3.4114,146.56,146.53,10.762]
[1727060081773,3.46474162,146.57,146.53,3.412]
[1727060082074,7.35,146.58,146.54,3.4117]
[1727060082460,7.35,146.58,146.54,10.7617]
[1727060083374,7.35,146.58,146.55,3.4114]
[1727060085568,7.35,146.58,146.54,7.35]
[1727060085569,10.761,146.58,146.54,3.4118]
[1727060086873,3.411,146.58,146.55,3.4116]
[1727060087075,3.4107,146.59,146.55,3.4116]
[1727060087382,10.7607,146.59,146.55,3.4116]
[1727060087978,3.4109,146.58,146.55,3.4116]
[1727060088380,7.35,146.59,146.55,3.4116]
[1727060089876,3.4109,146.58,146.55,3.4116]
[1727060090579,10.7607,146.59,146.53,7.35]
[1727060091375,10.7607,146.59,146.55,3.4114]
[1727060091984,3.4107,146.59,146.54,7.35]
[1727060092183,10.7607,146.59,146.54,7.35]
[1727060092488,10.7607,146.59,146.55,3.4114]
[1727060093786,3.4109,146.58,146.55,3.4114]
[1727060094379,7.35,146.57,146.55,3.4114]
[1727060097496,7.35,146.57,146.56,3.4114]
[1727060097701,4.2143,146.64,146.54,7.35]
[1727060097702,7.35,146.59,146.54,7.35]
[1727060098186,10.7607,146.59,146.56,3.4113]
[1727060098387,10.7607,146.59,146.54,7.35]
[1727060098586,10.7607,146.59,146.53,7.35]
[1727060098881,7.35,146.59,146.53,7.35]
[1727060099087,7.35,146.58,146.53,7.35]
[1727060099693,18.80535439,146.64,146.55,3.4115]
[1727060099896,7.35,146.58,146.55,3.4115]
[1727060100095,18.80535439,146.64,146.53,7.35]
[1727060100296,10.7601,146.62,146.57,7.35]
[1727060100490,18.80535439,146.64,146.58,7.35]
[1727060100791,7.35,146.61,146.5,4.1441]
[1727060100997,7.35,146.61,146.56,7.35]
[1727060101297,4.2143,146.64,146.5,4.1441]
[1727060101492,7.35,146.58,146.5,4.1441]
[1727060101688,7.35,146.58,146.53,7.35]
[1727060102584,3.4108,146.59,146.55,3.4114]
[1727060102884,7.35,146.58,146.55,3.4114]
[1727060103691,10.7609,146.58,146.55,3.4114]
[1727060108596,3.4109,146.58,146.55,3.4114]
[1727060108895,10.7609,146.58,146.55,3.4114]
[1727060109793,7.35,146.58,146.55,3.4114]
[1727060110291,7.35,146.58,146.53,7.35]
[1727060110493,10.7608,146.59,146.53,7.35]
[1727060110998,3.4108,146.59,146.56,3.4112]
[1727060111199,10.7608,146.59,146.56,3.4112]
[1727060112698,7.35,146.59,146.56,3.4112]
[1727060113203,18.80417103,146.64,146.5,4.1441]
[1727060113407,7.35,146.58,146.53,7.35]
[1727060113999,10.7608,146.59,146.54,7.35]
[1727060114512,3.4104,146.6,146.55,7.35]
[1727060114710,18.80417103,146.64,146.57,7.35]
[1727060114901,3.4101,146.62,146.59,3.4105]
[1727060117010,3.4101,146.62,146.58,10.7608]
[1727060117397,7.35,146.6,146.56,10.7612]
[1727060117605,7.35,146.6,146.56,3.4112]
[1727060118004,10.7605,146.6,146.56,3.4112]
[1727060118408,7.35,146.6,146.56,3.4112]
[1727060118710,7.35,146.6,146.55,3.4116]
[1727060120913,3.4109,146.58,146.55,3.4116]
[1727060121112,7.35,146.6,146.55,3.4116]
[1727060122012,3.4108,146.59,146.55,3.4116]
[1727060122411,3.4108,146.59,146.56,3.4113]
[1727060122613,3.4108,146.59,146.55,7.35]
[1727060122614,10.7606,146.6,146.55,7.35]
[1727060123513,1.3495,146.63,146.5,4.1441]
[1727060123716,7.35,146.58,146.54,7.35]
[1727060124104,3.411,146.58,146.55,3.4114]
[1727060125712,7.35,146.6,146.54,7.35]
[1727060127914,1.3495,146.63,146.57,7.35]
[1727060128108,17.44842246,146.64,146.58,7.35]
[1727060128308,10.1807,146.64,146.6,7.35]
[1727060128612,3.4099,146.63,146.6,7.35]
[1727060128917,1.4326,146.7,146.62,7.35]
[1727060129215,7.35,146.68,146.62,7.35]
[1727060130212,3.4092,146.66,146.62,10.7598]
[1727060130617,4.66098732,146.69,146.61,7.35]
[1727060130618,7.35,146.67,146.61,7.35]
[1727060131310,7.35,146.67,146.51,313.7049]
[1727060131311,7.35,146.67,146.62,7.35]
[1727060131512,3.4092,146.66,146.62,10.7599]
[1727060131712,3.4092,146.66,146.62,3.4099]
[1727060132015,3.4092,146.66,146.62,10.7599]
[1727060134618,3.4092,146.66,146.63,3.4097]
[1727060135421,7.35,146.68,146.65,3.4091]
[1727060135622,7.35,146.68,146.63,7.35]
[1727060136508,3.4089,146.67,146.63,10.7596]
[1727060138912,3.409,146.66,146.63,10.7596]
[1727060141224,8.6723,146.69,146.65,7.35]
[1727060141616,3.4087,146.68,146.65,10.7592]
[1727060144129,10.71062154,146.75,146.67,7.35]
[1727060144322,8.7501,146.75,146.7,7.35]
[1727060144522,3.4076,146.73,146.7,7.35]
[1727060144723,1.4001,146.75,146.71,7.35]
[1727060145233,17.31213977,146.78,146.74,7.35]
[1727060145425,1.3126,146.78,146.75,7.35]
[1727060145625,1.3126,146.78,146.76,7.35]
[1727060145828,1.4172,146.8,146.76,7.35]
[1727060146220,3.4061,146.79,146.76,7.35]
[1727060147330,1.4172,146.8,146.75,7.35]
[1727060147534,8.7672,146.8,146.75,7.35]
[1727060148429,3.4064,146.78,146.75,7.35]
[1727060148727,1.4172,146.8,146.75,7.35]
[1727060148932,8.7672,146.8,146.75,7.35]
[1727060149124,3.4064,146.78,146.75,7.35]
[1727060150129,3.4065,146.77,146.75,7.35]
[1727060151236,3.4063,146.78,146.76,7.35]
[1727060154532,8.7672,146.8,146.76,7.35]
[1727060154533,3.4065,146.77,146.76,7.35]
[1727060155432,3.4065,146.77,146.73,3.4073]
[1727060155637,3.4065,146.77,146.74,7.35]
[1727060158741,3.4065,146.77,146.74,10.7571]
[1727060160247,7.35,146.79,146.74,7.35]
[1727060161052,3.4067,146.77,146.74,10.7571]
[1727060161547,3.4067,146.77,146.75,7.35]
[1727060162342,8.7672,146.8,146.75,10.7569]
[1727060162343,3.4064,146.78,146.75,10.7569]
[1727060165546,3.406,146.79,146.77,7.35]
[1727060165741,3.406,146.79,146.78,7.35]
[1727060167051,3.4059,146.8,146.78,7.35]
[1727060167349,10.1826,146.83,146.78,7.35]
[1727060167350,2.8326,146.83,146.78,7.35]
[1727060167555,2.8326,146.83,146.71,1.3279]
[1727060167556,3.4053,146.82,146.81,7.35]
[1727060170452,3.4053,146.82,146.8,7.35]
[1727060171242,1.3807,146.86,146.81,7.35]
[1727060171444,3.42953523,146.85,146.81,7.35]
[1727060171854,6.83433523,146.85,146.81,10.7554]
[1727060172251,3.42953523,146.85,146.81,7.35]
[1727060172445,3.405,146.84,146.81,7.35]
[1727060172853,3.4046,146.85,146.83,7.35]
[1727060174557,3.35832083,146.86,146.81,7.35]
[1727060174855,8.6954,146.87,146.81,7.35]
[1727060175263,12.14354663,146.87,146.81,7.35]
[1727060175759,3.4049,146.84,146.81,10.7555]
[1727060175946,7.35,146.86,146.81,7.35]
[1727060176855,3.405,146.84,146.81,7.35]
[1727060177357,7.35,146.84,146.79,7.35]
[1727060177562,3.4056,146.81,146.79,7.35]
[1727060178256,7.35,146.83,146.78,7.35]
[1727060178656,3.4057,146.81,146.78,7.35]
[1727060179851,3.4057,146.81,146.78,10.7562]
[1727060180248,3.4057,146.81,146.78,7.35]
[1727060180857,7.35,146.82,146.77,7.35]
[1727060181255,7.35,146.81,146.72,1.3216]
[1727060181555,2.6566,146.86,146.77,7.35]
[1727060181556,7.35,146.82,146.77,7.35]
[1727060181857,3.4058,146.8,146.77,7.35]
[1727060182065,2.6566,146.86,146.72,1.3216]
[1727060182369,7.35,146.79,146.74,7.35]
[1727060182665,2.6566,146.86,146.76,7.35]
[1727060182666,7.35,146.8,146.76,7.35]
[1727060183157,2.6566,146.86,146.72,1.3216]
[1727060183158,7.35,146.82,146.77,7.35]
[1727060184163,3.406,146.8,146.77,7.35]
[1727060185358,3.406,146.79,146.77,7.35]
[1727060186152,6.89621055,146.79,146.77,7.35]
[1727060189566,6.89621055,146.79,146.75,3.4068]
[1727060189567,6.89621055,146.79,146.76,7.35]
[1727060191067,3.406,146.79,146.76,7.35]
[1727060191269,3.4058,146.8,146.77,7.35]
[1727060191466,7.35,146.83,146.79,7.35]
[1727060191969,3.4055,146.82,146.79,7.35]
[1727060192368,7.35,146.83,146.79,7.35]
[1727060192662,7.35,146.81,146.76,7.35]
[1727060193263,3.4059,146.8,146.76,10.7567]
[1727060193469,3.40388588,146.79,146.76,10.7567]
[1727060193670,6.80998588,146.79,146.76,10.7567]
[1727060194061,3.4061,146.79,146.76,10.7567]
[1727060194363,3.4059,146.8,146.76,10.7567]
[1727060194766,6.87508867,146.79,146.76,7.35]
[1727060194964,7.35,146.81,146.76,7.35]
[1727060195575,3.406,146.8,146.76,10.7567]
[1727060195866,3.33855906,146.79,146.76,10.7567]
[1727060196067,6.74455906,146.79,146.76,7.35]
[1727060196269,3.406,146.79,146.76,7.35]
[1727060196464,2.6566,146.86,146.76,7.35]
[1727060196866,7.35,146.82,146.76,7.35]
[1727060197067,3.4059,146.8,146.76,7.35]
[1727060197267,7.35,146.82,146.76,10.7566]
[1727060197667,2.6566,146.86,146.61,6.8202]
[1727060197867,7.35,146.72,146.68,3.4084]
[1727060198167,7.35,146.72,146.67,7.35]
[1727060198667,7.35,146.72,146.69,3.4083]
[1727060200262,10.7577,146.72,146.69,3.4083]
[1727060200672,7.35,146.72,146.69,3.4083]
[1727060200876,3.4075,146.73,146.7,10.758]
[1727060201074,7.35,146.75,146.7,10.758]
[1727060201075,7.35,146.75,146.7,7.35]
[1727060201674,10.72516541,146.75,146.7,7.35]
[1727060202876,3.4073,146.74,146.7,7.35]
[1727060203775,3.4073,146.74,146.7,10.758]
[1727060208381,3.37516541,146.75,146.71,3.4077]
[1727060208581,2.7337,146.8,146.71,3.4077]
[1727060208885,10.7571,146.75,146.71,3.4077]
[1727060209084,14.14430898,146.75,146.71,3.4077]
[1727060209684,3.4072,146.74,146.71,3.4077]
[1727060209984,3.4072,146.74,146.7,10.7581]
[1727060211481,7.35,146.72,146.67,1.3398]
[1727060211686,7.35,146.72,146.68,7.35]
[1727060211887,10.7574,146.73,146.68,7.35]
[1727060212089,10.7574,146.73,146.69,3.4082]
[1727060217496,3.4076,146.72,146.69,3.4082]
[1727060224191,3.45881069,146.77,146.71,7.35]
[1727060224497,3.44073922,146.77,146.73,7.35]
[1727060224698,3.4068,146.76,146.73,10.7572]
[1727060225397,94.25610561,146.88,146.75,7.35]
[1727060225595,4.0228,146.86,146.79,7.35]
[1727060225801,7.35,146.84,146.79,7.35]
[1727060226297,7.35,146.82,146.68,6.817]
[1727060226492,7.35,146.81,146.76,7.35]
[1727060227391,7.35,146.78,146.67,1.3398]
[1727060227596,7.35,146.77,146.73,7.35]
[1727060228492,3.4066,146.77,146.73,7.35]
[1727060228687,10.80931025,146.79,146.75,7.35]
[1727060228890,7.35,146.8,146.76,10.7567]
[1727060229090,7.35,146.81,146.76,7.35]
[1727060229291,7.35,146.8,146.76,7.35]
[1727060229594,10.7558,146.8,146.76,10.7567]
[1727060233698,6.7522911,146.79,146.76,10.7567]
[1727060234295,3.406,146.79,146.76,10.7567]
[1727060234993,3.4058,146.8,146.77,3.4063]
[1727060235300,7.35,146.82,146.77,7.35]
[1727060236797,3.4057,146.81,146.78,3.4062]
[1727060237194,3.4057,146.81,146.77,7.35]
[1727060237195,7.35,146.82,146.77,7.35]
[1727060237690,10.7555,146.82,146.78,3.4062]
[1727060238404,3.4056,146.81,146.78,3.4062]
[1727060239498,3.4054,146.82,146.79,3.406]
[1727060241194,3.4054,146.82,146.78,7.35]
[1727060241195,3.4052,146.83,146.8,7.35]
[1727060241392,4.0228,146.86,146.81,10.7555]
[1727060241597,3.4049,146.84,146.81,7.35]
[1727060243392,2.6887,146.86,146.82,7.35]
[1727060243996,6.0932,146.86,146.82,10.7552]
[1727060246303,3.4046,146.85,146.82,10.7552]
[1727060248496,3.4046,146.85,146.82,7.35]
[1727060249504,3.4049,146.84,146.81,3.4054]
[1727060250609,3.4047,146.85,146.82,3.4052]
[1727060250907,3.4047,146.85,146.82,10.7552]
[1727060251304,3.4047,146.85,146.82,3.4052]
[1727060252008,3.405,146.84,146.81,10.7555]
[1727060252199,2.6887,146.86,146.81,10.7555]
[1727060252400,10.0387,146.86,146.81,3.4055]
[1727060252609,10.0387,146.86,146.81,10.7555]
[1727060253707,3.405,146.84,146.81,7.35]
[1727060254403,3.405,146.84,146.81,10.7555]
[1727060255007,3.405,146.84,146.81,3.4055]
[1727060255608,3.4047,146.85,146.81,3.4055]
[1727060257411,3.4049,146.84,146.81,3.4055]
[1727060258907,7.35,146.83,146.76,1.4453]
[1727060259108,7.35,146.83,146.78,7.35]
[1727060259308,7.35,146.85,146.8,7.35]
[1727060259610,3.405,146.84,146.8,10.7556]
[1727060259801,3.405,146.84,146.82,7.35]
[1727060260005,3.4048,146.85,146.82,7.35]
[1727060260206,3.4048,146.85,146.81,3.4054]
[1727060260512,3.4048,146.85,146.81,10.7554]
[1727060261411,3.4049,146.84,146.81,10.7554]
[1727060262216,3.4047,146.85,146.81,10.7554]
[1727060266110,3.4045,146.86,146.84,7.35]
[1727060266311,3.46290234,146.87,146.84,7.35]
[1727060266520,3.4038,146.89,146.85,7.35]
[1727060267009,6.81561681,146.89,146.85,7.35]
[1727060268013,6.81561681,146.89,146.85,10.7545]
[1727060268211,4.225,146.93,146.85,7.35]
[1727060268429,4.225,146.93,146.87,10.754]
[1727060268714,3.36615783,146.92,146.87,7.35]
[1727060269221,7.35,146.91,146.86,7.35]
[1727060269417,10.71864341,146.91,146.86,7.35]
[1727060269614,3.4039,146.88,146.86,7.35]
[1727060269821,3.4039,146.88,146.84,7.35]
[1727060270120,7.35,146.9,146.84,7.35]
[1727060271730,3.4041,146.88,146.84,7.35]
[1727060272521,3.4042,146.87,146.84,7.35]
[1727060272721,3.4042,146.87,146.84,10.7548]
[1727060272921,7.35,146.9,146.84,10.7548]
[1727060273318,3.4041,146.88,146.84,10.7548]
[1727060275126,3.4042,146.87,146.84,10.7548]
[1727060280631,3.404,146.88,146.85,3.4045]
[1727060280827,3.36864341,146.91,146.85,7.35]
[1727060281133,3.36864341,146.91,146.77,2.71]
[1727060281134,4.225,146.93,146.9,7.35]
[1727060281328,6.86450745,146.92,146.89,7.35]
[1727060281628,3.46140745,146.92,146.87,7.35]
[1727060281927,3.46140745,146.92,146.87,10.754]
[1727060281928,7.35,146.92,146.87,10.754]
[1727060282225,7.35,146.92,146.87,7.35]
[1727060282431,3.4033,146.91,146.88,3.4038]
[1727060284126,3.4031,146.92,146.88,3.4038]
[1727060284729,6.80034814,146.92,146.88,3.4038]
[1727060285229,2.8799,146.97,146.89,7.35]
[1727060285533,7.35,146.94,146.89,7.35]
[1727060285728,2.8799,146.97,146.89,7.35]
[1727060285932,7.35,146.94,146.89,7.35]
[1727060286328,2.8799,146.97,146.84,2.7491]
[1727060286329,1.4438,146.97,146.9,7.35]
[1727060286634,1.4438,146.97,146.91,7.35]
[1727060286635,8.7938,146.97,146.91,7.35]
[1727060287231,8.7938,146.97,146.91,10.7531]
[1727060287232,3.4024,146.95,146.91,10.7531]
[1727060287632,3.4024,146.95,146.92,7.35]
[1727060288231,3.4024,146.95,146.91,10.7531]
[1727060290438,1.4249,146.99,146.85,1.3845]
[1727060290439,101.07049658,147.04,146.92,7.35]
[1727060290641,4.1893,147.03,146.93,7.35]
[1727060290940,7.35,146.99,146.93,7.35]
[1727060291143,33.9919573,147.03,146.89,2.6423]
[1727060291332,7.35,147.01,146.89,2.6423]
[1727060291530,7.62443789,147.03,146.95,7.35]
[1727060291938,7.35,147.0,146.95,7.35]
[1727060292256,7.62443789,147.03,146.96,7.35]
[1727060292541,7.35,147.01,146.96,7.35]
[1727060293142,3.4012,147.0,146.96,7.35]
[1727060294344,124.88436768,147.1,146.99,7.35]
[1727060294538,124.88436768,147.1,146.9,1.352]
[1727060294539,7.35,147.06,147.01,7.35]
[1727060294849,6.78628671,147.05,147.01,7.35]
[1727060295050,3.4002,147.05,147.01,7.35]
[1727060295345,14.51434856,147.06,147.01,7.35]
[1727060295543,21.85184929,147.06,147.01,7.35]
[1727060295734,14.50314925,147.05,147.01,7.35]
[1727060295939,3.4004,147.04,147.01,7.35]
[1727060296143,7.35,147.06,147.01,7.35]
[1727060296648,10.75887437,147.06,147.01,7.35]
[1727060297039,3.4002,147.05,147.01,7.35]
[1727060297641,3.4002,147.04,147.0,10.751]
[1727060297843,7.35,147.02,146.96,1.3067]
[1727060298045,7.35,147.02,146.97,7.35]
[1727060298251,14.5026194,147.05,147.0,7.35]
[1727060298549,3.32483421,147.04,147.0,7.35]
[1727060299539,7.35,147.04,146.96,1.3067]
[1727060299747,3.34660963,147.05,146.97,7.35]
[1727060299952,7.35,147.0,146.92,2.8568]
[1727060300147,1.4324,147.04,146.95,7.35]
[1727060300345,7.35,147.0,146.95,7.35]
[1727060301252,10.81705492,147.0,146.95,7.35]
[1727060301847,3.4016,146.98,146.95,7.35]
[1727060302141,10.81705492,147.0,146.95,7.35]
[1727060302554,3.4015,146.99,146.95,7.35]
[1727060307049,10.81705492,147.0,146.95,7.35]
[1727060307050,3.4016,146.98,146.95,7.35]
[1727060307446,3.4016,146.98,146.96,7.35]
[1727060308354,3.4015,146.99,146.96,7.35]
[1727060308555,3.4015,146.99,146.96,10.752]
[1727060308953,3.4015,146.99,146.97,7.35]
[1727060309855,3.4016,146.98,146.96,7.35]
[1727060310055,7.35,147.01,146.96,7.35]
[1727060310649,3.4015,146.99,146.96,7.35]
[1727060312754,3.4016,146.98,146.96,7.35]
[1727060318666,3.4018,146.97,146.95,7.35]
[1727060319160,7.35,147.0,146.95,7.35]
[1727060319764,3.402,146.97,146.95,7.35]
[1727060321463,3.35194009,147.01,146.96,7.35]
[1727060321663,10.1128,147.03,146.98,7.35]
[1727060322064,13.51874979,147.03,146.98,7.35]